bitfinex/quotes_BTCUSD_20250326
["timestamp","ask_amount","ask_price","bid_price","bid_amount"]
[1742996790073,1.18352968,88030.0,88029.0,0.1495088]
[1742996790592,1.18552968,88030.0,88029.0,0.1495088]
[1742996790791,1.18252968,88030.0,88029.0,0.1495088]
[1742996791350,1.16148185,88030.0,88029.0,0.11536384]
[1742996792160,1.15948185,88030.0,88029.0,0.11536384]
[1742996792603,1.60108185,88030.0,88029.0,0.08121888]
[1742996793013,1.60608185,88030.0,88029.0,0.04707392]
[1742996793216,1.60108185,88030.0,88029.0,0.04707392]
[1742996793537,1.60608185,88030.0,88029.0,0.04707392]
[1742996793738,1.69807859,88030.0,88029.0,0.04707392]
[1742996794033,1.60608185,88030.0,88029.0,0.04707392]
[1742996794243,1.47532185,88030.0,88029.0,0.04707392]
[1742996794388,1.60580185,88030.0,88029.0,0.04707392]
[1742996795588,1.62360428,88030.0,88029.0,0.04707392]
[1742996796063,0.1,88004.0,87991.0,0.00016065]
[1742996796255,0.45644501,87992.0,87991.0,0.00016065]
[1742996797101,0.47425054,87992.0,87991.0,0.00016065]
[1742996797413,0.47425054,87992.0,87991.0,0.00120172]
[1742996797602,0.48584477,87992.0,87991.0,0.00120172]
[1742996797794,0.61660477,87992.0,87991.0,0.00020172]
[1742996799302,0.67826525,87992.0,87991.0,0.00020172]
[1742996799479,0.61660477,87992.0,87991.0,0.00020172]
[1742996799855,1.34873177,87992.0,87991.0,0.00020172]
[1742996800059,1.29621977,87992.0,87991.0,0.00020172]
[1742996800582,1.12877677,87992.0,87991.0,0.00020172]
[1742996800922,0.61956477,87992.0,87991.0,0.00020172]
[1742996801076,0.68152125,87992.0,87991.0,0.00020172]
[1742996801295,0.67952125,87992.0,87991.0,0.00020172]
[1742996801519,0.67852125,87992.0,87991.0,0.00020172]
[1742996801738,0.68152125,87992.0,87991.0,0.00020172]
[1742996802845,0.66371572,87992.0,87991.0,0.00020172]
[1742996803141,0.66671572,87992.0,87991.0,0.00020172]
[1742996803875,0.49655122,87992.0,87991.0,0.00020172]
[1742996804065,0.62711122,87992.0,87991.0,0.00020172]
[1742996805263,1.63795622,87992.0,87991.0,0.00020172]
[1742996805469,0.92805422,87992.0,87991.0,0.00020172]
[1742996805665,0.94586156,87992.0,87991.0,0.00020172]
[1742996805894,0.74963656,87992.0,87991.0,0.00020172]
[1742996806095,1.04722344,87992.0,87991.0,0.00020172]
[1742996806298,0.75424444,87992.0,87991.0,0.00020172]
[1742996807074,0.88410144,87992.0,87991.0,0.00020172]
[1742996809997,0.96020144,87992.0,87991.0,0.00020172]
[1742996811466,1.43864229,87992.0,87991.0,0.00020172]
[1742996811663,1.46364229,87992.0,87991.0,0.00020172]
[1742996812519,1.69093529,87992.0,87991.0,0.00020172]
[1742996812735,1.67312795,87992.0,87991.0,0.00020172]
[1742996812958,1.44583495,87992.0,87991.0,0.00020172]
[1742996813115,1.44283495,87992.0,87991.0,0.00020172]
[1742996813520,1.44783495,87992.0,87991.0,0.00020172]
[1742996813769,1.44483495,87992.0,87991.0,0.00020172]
[1742996814148,1.44983495,87992.0,87991.0,0.00020172]
[1742996814359,1.44483495,87992.0,87991.0,0.00020172]
[1742996814922,1.43983495,87992.0,87991.0,0.00020172]
[1742996815703,1.22235252,87992.0,87991.0,0.00020172]
[1742996815917,1.44964552,87992.0,87991.0,0.00020172]
[1742996816091,1.46100952,87992.0,87991.0,0.00020172]
[1742996816295,6.41646052,87992.0,87991.0,0.00020172]
[1742996816505,6.46600952,87992.0,87991.0,0.00020172]
[1742996816924,0.66160285,87990.0,87989.0,0.000339]
[1742996817080,6.48645289,87990.0,87989.0,0.000339]
[1742996817490,6.48645289,87990.0,87971.0,0.002]
[1742996817491,0.58,87972.0,87971.0,0.002]
[1742996817725,0.58,87972.0,87971.0,0.00204105]
[1742996817726,6.29304574,87972.0,87971.0,0.00204105]
[1742996817911,5.74745874,87972.0,87971.0,0.00204105]
[1742996818248,5.41169666,87972.0,87971.0,0.00204105]
[1742996818632,5.23033919,87972.0,87971.0,0.00204105]
[1742996819040,5.86928419,87972.0,87971.0,0.00204105]
[1742996819471,5.64193919,87972.0,87971.0,0.00204105]
[1742996819834,5.86928419,87972.0,87971.0,0.00204105]
[1742996820057,5.64193919,87972.0,87971.0,0.00204105]
[1742996820454,0.1,87945.0,87940.0,0.0003392]
[1742996820697,0.45516489,87942.0,87941.0,0.00212324]
[1742996821313,0.47298193,87942.0,87941.0,0.00212324]
[1742996821737,1.11393793,87942.0,87941.0,0.00212324]
[1742996821891,1.08989078,87942.0,87928.0,0.0001696]
[1742996822139,1.08989078,87942.0,87928.0,0.00012334]
[1742996822140,0.1,87929.0,87928.0,0.00012334]
[1742996822344,0.53300406,87929.0,87928.0,0.00012334]
[1742996822567,0.53016,87929.0,87928.0,0.00012334]
[1742996822784,1.41635,87929.0,87928.0,0.00012334]
[1742996823022,1.286198,87929.0,87928.0,0.00012334]
[1742996823671,0.601596,87929.0,87928.0,0.00012334]
[1742996823891,0.720829,87929.0,87928.0,0.00012334]
[1742996825353,0.73536985,87929.0,87928.0,0.00012334]
[1742996825560,0.7531915,87929.0,87928.0,0.00012334]
[1742996825991,0.7561915,87929.0,87928.0,0.00012334]
[1742996826199,1.4228915,87929.0,87928.0,0.00012334]
[1742996826429,1.4228915,87929.0,87883.0,0.0003396]
[1742996826430,0.3,87911.0,87883.0,0.0003396]
[1742996826583,0.45516489,87884.0,87883.0,0.0003396]
[1742996826784,0.58540489,87884.0,87883.0,0.0003396]
[1742996826986,0.64394538,87884.0,87883.0,0.0003396]
[1742996827347,0.6031923,87884.0,87883.0,0.0003396]
[1742996827490,0.61438355,87884.0,87883.0,0.0003396]
[1742996827894,0.61438355,87884.0,87883.0,0.00075073]
[1742996831080,0.50703208,87884.0,87883.0,0.00075073]
[1742996831255,0.68809529,87884.0,87883.0,0.00075073]
[1742996831809,0.63743208,87884.0,87883.0,0.00075073]
[1742996832808,0.61960467,87884.0,87883.0,0.00075073]
[1742996834960,0.48920467,87884.0,87883.0,0.00075073]
[1742996835493,0.61952467,87884.0,87883.0,0.00075073]
[1742996835702,0.48920467,87884.0,87883.0,0.00075073]
[1742996835908,0.61948467,87884.0,87883.0,0.00075073]
[1742996836131,0.68321595,87884.0,87883.0,0.00075073]
[1742996836703,0.61948467,87884.0,87883.0,0.00075073]
[1742996837895,0.3,87883.0,87871.0,0.58368043]
[1742996838136,0.3,87883.0,87881.0,0.00012311]
[1742996839559,0.00284502,87882.0,87881.0,0.00012311]
[1742996839714,0.0668608,87882.0,87881.0,0.00012311]
[1742996840675,1.1111268,87882.0,87881.0,0.00012311]
[1742996840824,0.58303678,87882.0,87881.0,0.00012311]
[1742996841243,0.47888278,87882.0,87881.0,0.00012311]
[1742996841624,0.3,87882.0,87881.0,0.00012311]
[1742996841828,0.43,87882.0,87881.0,0.00012311]
[1742996842056,0.3,87882.0,87881.0,0.00012311]
[1742996842257,0.43,87882.0,87881.0,0.00012311]
[1742996843317,0.3,87882.0,87881.0,0.00012311]
[1742996843515,0.47892047,87882.0,87881.0,0.00012311]
[1742996843764,0.43,87882.0,87881.0,0.00012311]
[1742996844339,0.42996,87882.0,87881.0,0.00012311]
[1742996845024,0.17801342,87884.0,87883.0,0.238953]
[1742996845303,0.01782781,87891.0,87890.0,0.011377]
[1742996845503,0.01782781,87891.0,87890.0,0.315734]
[1742996846141,0.01782781,87891.0,87890.0,0.7732828]
[1742996846305,0.0229861,87914.0,87913.0,0.238871]
[1742996846649,0.01131157,87925.0,87913.0,0.238871]
[1742996846650,0.15516489,87919.0,87918.0,0.227484]
[1742996846863,0.58524489,87919.0,87918.0,0.227484]
[1742996847057,0.15516489,87919.0,87918.0,0.238858]
[1742996847290,0.15516489,87919.0,87918.0,0.0753]
[1742996847450,0.15516489,87919.0,87911.0,0.227502]
[1742996847652,0.15516489,87919.0,87910.0,0.314179]
[1742996847653,0.21368938,87919.0,87910.0,0.0753]
[1742996847853,0.21368938,87919.0,87898.0,0.011376]
[1742996847854,0.00284349,87918.0,87902.0,0.0765]
[1742996848116,0.00284349,87918.0,87902.0,0.304025]
[1742996848244,0.21409925,87919.0,87905.0,0.62302495]
[1742996848454,0.15557476,87919.0,87905.0,0.62302495]
[1742996848971,0.15557476,87919.0,87905.0,0.39550795]
[1742996849171,0.00284386,87918.0,87905.0,0.39550795]
[1742996849601,0.15557476,87919.0,87914.0,0.011374]
[1742996849812,0.15557476,87919.0,87918.0,0.238858]
[1742996849972,0.15557476,87919.0,87918.0,0.321058]
[1742996850385,0.17339299,87919.0,87918.0,0.0822]
[1742996850585,0.17339299,87919.0,87907.0,0.0787]
[1742996850785,0.17339299,87919.0,87918.0,0.078039]
[1742996852427,0.60399299,87919.0,87918.0,0.078039]
[1742996852746,0.45591436,87919.0,87918.0,0.078039]
[1742996853010,0.15591436,87919.0,87918.0,0.089413]
[1742996853438,0.15591436,87919.0,87918.0,0.078039]
[1742996853651,0.1845698,87919.0,87918.0,0.078039]
[1742996853796,0.15591436,87919.0,87918.0,0.089413]
[1742996854004,0.15591436,87919.0,87918.0,0.078039]
[1742996854197,0.15591436,87919.0,87918.0,0.090413]
[1742996854402,0.15591436,87919.0,87918.0,0.078039]
[1742996854882,0.58651436,87919.0,87918.0,0.089413]
[1742996855102,0.28651436,87919.0,87918.0,0.089413]
[1742996855243,0.28651436,87919.0,87918.0,0.090413]
[1742996855648,0.00074947,87919.0,87918.0,0.090413]
[1742996855940,0.00074947,87919.0,87918.0,0.21334317]
[1742996856161,0.00074947,87919.0,87918.0,0.23095385]
[1742996856340,4.7e-07,87919.0,87918.0,0.6264618]
[1742996856901,0.13068,87945.0,87944.0,0.238787]
[1742996857164,0.15516489,87959.0,87957.0,0.227383]
[1742996857401,0.13072,87958.0,87956.0,0.227385]
[1742996857629,0.13072,87958.0,87953.0,0.011369]
[1742996857818,0.3,87957.0,87951.0,0.227399]
[1742996858037,0.3,87957.0,87951.0,0.34065664]
[1742996858175,0.3,87957.0,87943.0,0.0808]
[1742996858383,0.3,87957.0,87946.0,0.227409]
[1742996858582,0.13072,87958.0,87947.0,0.227409]
[1742996858792,0.3,87957.0,87947.0,0.227409]
[1742996859113,0.3,87957.0,87953.0,0.001]
[1742996859494,0.00284233,87956.0,87953.0,0.001]
[1742996859719,0.3,87957.0,87956.0,0.001]
[1742996859928,0.606879,87957.0,87956.0,0.001]
[1742996860115,0.470064,87957.0,87956.0,0.001]
[1742996860433,0.470064,87957.0,87953.0,0.001]
[1742996860632,0.3,87955.0,87953.0,0.001]
[1742996861000,0.3,87955.0,87944.0,0.59092]
[1742996861845,0.3,87953.0,87946.0,0.002]
[1742996862085,0.3,87951.0,87944.0,0.59092]
[1742996862280,0.00284289,87950.0,87944.0,0.59092]
[1742996862403,0.00284289,87949.0,87944.0,0.59092]
[1742996862610,0.03048429,87948.0,87944.0,0.59092]
[1742996862850,0.03332718,87948.0,87944.0,0.59092]
[1742996863049,0.3,87946.0,87944.0,0.59092]
[1742996863270,0.3,87946.0,87919.0,0.5908]
[1742996863647,0.3,87935.0,87919.0,0.818281]
[1742996863799,0.3,87933.0,87922.0,0.227474]
[1742996863997,0.3,87933.0,87919.0,0.5908]
[1742996864161,0.3,87933.0,87920.0,0.238852]
[1742996864390,0.3,87933.0,87922.0,0.227474]
[1742996864809,0.3,87933.0,87924.0,0.227468]
[1742996865007,0.01781766,87931.0,87920.0,0.227479]
[1742996865213,0.0781922,87931.0,87922.0,0.001]
[1742996865935,0.01781766,87931.0,87922.0,0.228472]
[1742996866175,0.01781766,87931.0,87922.0,0.001]
[1742996866373,0.01781766,87931.0,87922.0,0.228469]
[1742996866596,0.01781766,87931.0,87922.0,0.001]
[1742996866802,0.02266738,87926.0,87922.0,0.001]
[1742996867451,0.3,87929.0,87922.0,0.012373]
[1742996867652,0.3,87929.0,87922.0,0.001]
[1742996867827,0.3,87929.0,87919.0,0.602174]
[1742996868036,0.3,87929.0,87922.0,0.227473]
[1742996868703,0.3,87929.0,87920.0,0.227479]
[1742996868903,0.04711512,87928.0,87919.0,0.5908]
[1742996870148,0.00284354,87927.0,87919.0,0.5908]
[1742996870347,0.00284354,87927.0,87918.0,0.078039]
[1742996870348,0.3,87925.0,87918.0,0.078039]
[1742996870553,0.00284393,87924.0,87918.0,0.078039]
[1742996870800,0.3,87923.0,87918.0,0.078039]
[1742996871594,0.02066441,87922.0,87918.0,0.078039]
[1742996871802,0.4,87921.0,87918.0,0.078039]
[1742996871996,0.30284407,87920.0,87918.0,0.078039]
[1742996872235,0.04711512,87919.0,87918.0,0.078039]
[1742996872420,0.54387312,87919.0,87918.0,0.078039]
[1742996872629,0.3,87919.0,87918.0,0.078039]
[1742996873918,0.301,87919.0,87918.0,0.078039]
[1742996874117,0.302,87919.0,87918.0,0.078039]
[1742996876124,0.002,87919.0,87918.0,0.078039]
[1742996876326,0.13292,87919.0,87918.0,0.0782086]
[1742996876460,0.13292,87919.0,87918.0,0.3170666]
[1742996876866,0.002,87919.0,87918.0,0.3170666]
[1742996877082,0.01881918,87919.0,87918.0,0.3170666]
[1742996877296,0.01781918,87919.0,87918.0,0.3170666]
[1742996877703,0.01781918,87919.0,87918.0,0.0782086]
[1742996877704,0.0327051,87919.0,87918.0,0.0782086]
[1742996878119,0.01781918,87919.0,87918.0,0.0782086]
[1742996879181,0.14889918,87919.0,87918.0,0.3170666]
[1742996879361,0.44889918,87919.0,87918.0,0.3170666]
[1742996879551,0.44889918,87919.0,87918.0,0.9079066]
[1742996880500,0.31781918,87919.0,87918.0,0.92244745]
[1742996881578,0.31781918,87919.0,87918.0,0.6690486]
[1742996881778,0.3,87919.0,87918.0,0.6690486]
[1742996884398,0.3,87919.0,87918.0,0.0782086]
[1742996885236,0.3,87919.0,87918.0,0.3170666]
[1742996885438,0.43172,87919.0,87918.0,0.0782086]
[1742996885636,0.43172,87919.0,87918.0,0.3170666]
[1742996886220,0.3,87919.0,87918.0,0.33160745]
[1742996886421,0.31781853,87919.0,87918.0,0.33160745]
[1742996886800,0.31781853,87919.0,87918.0,0.0782086]
[1742996886997,0.36277238,87919.0,87918.0,0.0782086]
[1742996888233,0.31781853,87919.0,87918.0,0.0782086]
[1742996889067,0.31881853,87919.0,87918.0,0.0782086]
[1742996889489,0.99506653,87919.0,87918.0,0.0782086]
[1742996889699,0.31781853,87919.0,87918.0,0.0782086]
[1742996889873,0.31781853,87919.0,87918.0,0.0802086]
[1742996890119,0.31781853,87919.0,87918.0,0.0782086]
[1742996890959,0.31881853,87919.0,87918.0,0.0782086]
[1742996891139,0.31981853,87919.0,87918.0,0.0782086]
[1742996892753,0.302,87919.0,87918.0,0.0782086]
[1742996893527,0.32435273,87919.0,87918.0,0.0782086]
[1742996894751,0.40555273,87919.0,87918.0,0.0782086]
[1742996894919,4.02839358,87919.0,87918.0,0.02683031]
[1742996895132,4.02839358,87919.0,87912.0,0.0001697]
[1742996895133,0.636,87913.0,87912.0,0.0001697]
[1742996895334,0.92816489,87913.0,87912.0,0.0001697]
[1742996895778,0.94599025,87913.0,87912.0,0.0001697]
[1742996895969,0.1,87894.0,87873.0,0.59092]
[1742996896147,0.3,87876.0,87873.0,0.59092]
[1742996896346,0.3,87874.0,87873.0,0.59092]
[1742996896952,0.31782747,87874.0,87873.0,0.59092]
[1742996897539,0.32927524,87874.0,87873.0,0.59132987]
[1742996899882,0.32927524,87874.0,87873.0,0.59149947]
[1742996901661,0.31144777,87874.0,87873.0,0.57367044]
[1742996902633,0.33478107,87874.0,87873.0,0.57367044]
[1742996903054,0.39696367,87874.0,87873.0,0.00057947]
[1742996903191,0.77155767,87874.0,87873.0,0.00057947]
[1742996903401,0.47316367,87874.0,87873.0,0.00057947]
[1742996904818,0.47416367,87874.0,87873.0,0.00057947]
[1742996905018,1.41947867,87874.0,87873.0,0.00057947]
[1742996905248,0.7728109,87874.0,87873.0,0.00057947]
[1742996905446,0.7336689,87874.0,87873.0,0.00057947]
[1742996906221,0.4627159,87874.0,87873.0,0.00057947]
[1742996906670,0.4647159,87874.0,87873.0,0.00057947]
[1742996911402,0.47640212,87874.0,87873.0,0.00057947]
[1742996911663,1.47764312,87874.0,87873.0,0.00057947]
[1742996911909,1.88924312,87874.0,87873.0,0.00057947]
[1742996912344,1.89424312,87874.0,87873.0,0.00057947]
[1742996912472,1.89224312,87874.0,87873.0,0.00057947]
[1742996912707,1.89224312,87874.0,87868.0,0.0003396]
[1742996912708,0.1,87861.0,87851.0,0.002]
[1742996912918,0.45516489,87852.0,87851.0,0.00212311]
[1742996913586,0.49141493,87852.0,87851.0,0.00212311]
[1742996913997,0.56841493,87852.0,87851.0,0.00212311]
[1742996914194,0.60081383,87852.0,87851.0,0.00212311]
[1742996914379,0.73059753,87852.0,87851.0,0.00212311]
[1742996914774,0.76299643,87852.0,87851.0,0.00212311]
[1742996915333,0.73059753,87852.0,87851.0,0.00212311]
[1742996915545,0.67041493,87852.0,87851.0,0.00212311]
[1742996915738,0.68860489,87852.0,87851.0,0.00212311]
[1742996915965,0.58860489,87852.0,87851.0,0.00212311]
[1742996916819,0.59060489,87852.0,87851.0,0.00212311]
[1742996917058,0.58860489,87852.0,87851.0,0.00212311]
[1742996917413,0.58660489,87852.0,87851.0,0.00212311]
[1742996918433,0.30920718,87852.0,87851.0,0.00212311]
[1742996918640,0.31020718,87852.0,87851.0,0.00212311]
[1742996919084,0.31024718,87852.0,87851.0,0.00212311]
[1742996921970,0.31024718,87852.0,87851.0,0.22978111]
[1742996921971,0.47776718,87852.0,87851.0,0.22978111]
[1742996922174,0.30912718,87852.0,87851.0,0.22978111]
[1742996922376,0.30912718,87852.0,87851.0,0.00212311]
[1742996923340,0.30912718,87852.0,87851.0,0.22978111]
[1742996923501,0.30912718,87852.0,87851.0,0.00212311]
[1742996923910,0.3401199,87852.0,87851.0,0.00229291]
[1742996924110,0.30920718,87852.0,87851.0,0.22995091]
[1742996924312,0.30920718,87852.0,87851.0,0.00229291]
[1742996926231,0.15516489,87852.0,87851.0,0.22995091]
[1742996926493,0.28656489,87852.0,87851.0,0.24133291]
[1742996926887,0.28656489,87852.0,87851.0,0.00229291]
[1742996926888,0.33305254,87852.0,87851.0,0.00229291]
[1742996927407,0.30439605,87852.0,87851.0,0.00229291]
[1742996929692,0.30439605,87852.0,87851.0,0.00429291]
[1742996932041,0.58656489,87852.0,87851.0,0.00429291]
[1742996934066,0.58656489,87852.0,87851.0,0.00229291]
[1742996934267,0.58856489,87852.0,87851.0,0.00229291]
[1742996934469,0.59056489,87852.0,87851.0,0.00229291]
[1742996934672,0.58856489,87852.0,87851.0,0.00229291]
[1742996935111,0.59156489,87852.0,87851.0,0.00229291]
[1742996935520,0.46016489,87852.0,87851.0,0.00229291]
[1742996935727,0.59140489,87852.0,87851.0,0.00229291]
[1742996936348,0.6523289,87852.0,87851.0,0.00229291]
[1742996936807,0.6493289,87852.0,87851.0,0.00229291]
[1742996936981,0.6473289,87852.0,87851.0,0.00229291]
[1742996937402,0.58640489,87852.0,87851.0,0.00229291]
[1742996940675,0.59040489,87852.0,87851.0,0.00229291]
[1742996941105,0.58840489,87852.0,87851.0,0.00229291]
[1742996941530,0.59040489,87852.0,87851.0,0.00229291]
[1742996944771,0.59044489,87852.0,87851.0,0.00229291]
[1742996945616,0.60828065,87852.0,87851.0,0.00229291]
[1742996946111,0.47700065,87852.0,87851.0,0.00229291]
[1742996946251,0.60820065,87852.0,87851.0,0.00229291]
[1742996947074,1.01980065,87852.0,87851.0,0.00229291]
[1742996947296,2.01536465,87852.0,87851.0,0.00229291]
[1742996947504,0.3,87851.0,87830.0,0.0001699]
[1742996947722,0.45516489,87831.0,87830.0,0.22800538]
[1742996947972,0.58640489,87831.0,87830.0,0.36919038]
[1742996949401,0.58640489,87831.0,87830.0,0.13009338]
[1742996949814,0.58640489,87831.0,87830.0,0.35780538]
[1742996950393,0.58640489,87831.0,87830.0,0.13009338]
[1742996950811,0.64504538,87831.0,87830.0,0.00029338]
[1742996951010,0.51380538,87831.0,87830.0,0.00029338]
[1742996951213,0.64504538,87831.0,87830.0,0.00029338]
[1742996951639,0.58640489,87831.0,87830.0,0.00029338]
[1742996952898,0.66180489,87831.0,87830.0,0.00029338]
[1742996953322,0.58640489,87831.0,87830.0,0.00029338]
[1742996954363,0.58840489,87831.0,87830.0,0.00029338]
[1742996954884,0.58640489,87831.0,87830.0,0.00029338]
[1742996955504,0.45516489,87831.0,87830.0,0.00029338]
[1742996955928,0.58824489,87831.0,87830.0,0.00029338]
[1742996956131,0.64732175,87831.0,87830.0,0.00029338]
[1742996956440,0.58924489,87831.0,87830.0,0.00029338]
[1742996956877,0.58624489,87831.0,87830.0,0.00029338]
[1742996957906,0.45516489,87831.0,87830.0,0.00029338]
[1742996958105,0.58628489,87831.0,87830.0,0.00029338]
[1742996959849,0.45516489,87831.0,87830.0,0.31529038]
[1742996960054,0.28640489,87831.0,87830.0,0.31529038]
[1742996960275,0.28640489,87831.0,87830.0,0.07619338]
[1742996960410,0.58640489,87831.0,87830.0,0.07619338]
[1742996961033,0.58740489,87831.0,87830.0,0.00029338]
[1742996961217,0.58840489,87831.0,87830.0,0.00029338]
[1742996961676,0.53840489,87831.0,87830.0,0.00029338]
[1742996962515,0.54890913,87831.0,87830.0,0.00029338]
[1742996963162,0.54790913,87831.0,87830.0,0.00029338]
[1742996964135,0.54890913,87831.0,87830.0,0.00029338]
[1742996965093,0.54902913,87831.0,87830.0,0.00029338]
[1742996966296,1.04162913,87831.0,87830.0,0.00029338]
[1742996966706,2.62791071,87831.0,87830.0,0.00029338]
[1742996967076,2.67351071,87831.0,87830.0,0.00029338]
[1742996967250,2.67251071,87831.0,87830.0,0.00029338]
[1742996967476,2.67451071,87831.0,87830.0,0.00029338]
[1742996967808,2.54415071,87831.0,87830.0,0.00029338]
[1742996968082,1.73282371,87831.0,87830.0,0.00029338]
[1742996968488,1.73682371,87831.0,87830.0,0.00029338]
[1742996968690,1.73482371,87831.0,87830.0,0.00029338]
[1742996969062,1.73982371,87831.0,87830.0,0.00029338]
[1742996969338,1.52915971,87831.0,87830.0,0.00029338]
[1742996969550,1.46291871,87831.0,87830.0,0.00029338]
[1742996970255,1.45141447,87831.0,87830.0,0.00029338]
[1742996970466,1.54341121,87831.0,87830.0,0.00029338]
[1742996970707,1.45141447,87831.0,87830.0,0.00029338]
[1742996971934,1.32017447,87831.0,87830.0,0.00029338]
[1742996972109,1.45129447,87831.0,87830.0,0.00029338]
[1742996972313,1.21687747,87831.0,87830.0,0.00029338]
[1742996972513,0.95688489,87831.0,87830.0,0.00029338]
[1742996973483,0.95188489,87831.0,87830.0,0.00029338]
[1742996973821,0.95688489,87831.0,87830.0,0.00029338]
[1742996974035,0.82576489,87831.0,87830.0,0.00029338]
[1742996974229,0.95180489,87831.0,87830.0,0.00029338]
[1742996974434,0.94780489,87831.0,87830.0,0.00029338]
[1742996974823,0.24216489,87831.0,87830.0,0.00029338]
[1742996975033,0.11116489,87831.0,87830.0,0.23939038]
[1742996975239,0.002,87831.0,87830.0,0.35947517]
[1742996975703,0.004,87831.0,87830.0,0.35947517]
[1742996975912,0.002,87831.0,87830.0,0.35947517]
[1742996976125,0.0003398,87840.0,87839.0,0.239073]
[1742996976334,0.0003398,87840.0,87839.0,0.830633]
[1742996976955,0.01817386,87840.0,87839.0,0.830633]
[1742996977339,0.01817386,87840.0,87839.0,0.92017385]
[1742996977544,0.01817386,87840.0,87839.0,1.03443149]
[1742996977962,0.01817386,87840.0,87839.0,0.905633]
[1742996978607,0.01817386,87840.0,87839.0,0.66656]
[1742996978758,0.01817386,87840.0,87839.0,0.677944]
[1742996978962,0.01817386,87840.0,87839.0,0.59156]
[1742996979167,0.0003398,87840.0,87839.0,0.59156]
[1742996979580,0.0003398,87840.0,87839.0,0.63109684]
[1742996979979,0.0003398,87840.0,87839.0,0.602944]
[1742996980744,0.01817406,87840.0,87839.0,0.602944]
[1742996981931,0.0003398,87840.0,87839.0,0.602944]
[1742996982334,0.0003398,87840.0,87839.0,0.61748485]
[1742996986182,0.29905782,87850.0,87842.0,0.011384]
[1742996986343,0.29905782,87850.0,87844.0,0.227676]
[1742996986700,0.14891347,87849.0,87848.0,0.011383]
[1742996986922,0.14891347,87849.0,87845.0,0.602743]
[1742996987486,0.14891347,87849.0,87845.0,0.830414]
[1742996987887,0.14891347,87849.0,87846.0,0.22767]
[1742996988073,0.14891347,87849.0,87848.0,0.239048]
[1742996988269,0.14879347,87849.0,87848.0,0.35330564]
[1742996988708,0.14879347,87849.0,87848.0,0.239048]
[1742996990693,0.14879347,87849.0,87845.0,0.602743]
[1742996990891,0.14879347,87849.0,87846.0,0.22767]
[1742996991105,0.14879347,87849.0,87845.0,0.59136]
[1742996992716,0.13096,87849.0,87845.0,0.59136]
[1742996993062,0.13096,87849.0,87845.0,0.59336]
[1742996995815,0.00284589,87848.0,87845.0,0.59336]
[1742996996013,0.13096,87849.0,87845.0,0.59336]
[1742996996416,0.1312992,87849.0,87845.0,0.59336]
[1742996996604,0.0003392,87849.0,87845.0,0.59336]
[1742996996801,0.0003392,87849.0,87848.0,0.239048]
[1742996997018,0.14925301,87849.0,87848.0,0.239048]
[1742996997434,0.01817301,87849.0,87848.0,0.239048]
[1742996997632,0.14921301,87849.0,87848.0,0.239048]
[1742996998375,0.01817301,87849.0,87848.0,0.34141843]
[1742996999118,0.01817301,87849.0,87848.0,0.25358885]
[1742996999595,0.01817301,87849.0,87848.0,0.25458885]
[1742997000006,0.01817301,87849.0,87848.0,0.6500968]
[1742997000203,0.01817301,87849.0,87848.0,0.6490968]
[1742997000779,0.01817301,87849.0,87848.0,0.62417295]
[1742997000984,0.01817301,87849.0,87848.0,0.63555595]
[1742997001170,0.01817301,87849.0,87848.0,0.001]
[1742997001853,0.01817301,87849.0,87845.0,0.59136]
[1742997002070,0.3,87847.0,87845.0,0.59136]
[1742997002277,0.3449373,87847.0,87845.0,0.59136]
[1742997002482,0.3,87847.0,87845.0,0.59136]
[1742997002692,0.40516489,87847.0,87845.0,0.59136]
[1742997002900,0.0783,87846.0,87845.0,0.59136]
[1742997003115,0.43116,87846.0,87845.0,0.59136]
[1742997004135,0.47440992,87846.0,87845.0,0.59136]
[1742997004339,0.43116,87846.0,87845.0,0.59136]
[1742997005147,0.43216,87846.0,87845.0,0.59136]
[1742997005759,0.4499959,87846.0,87845.0,0.59136]
[1742997005990,0.9509959,87846.0,87845.0,0.59136]
[1742997006401,0.9508359,87846.0,87845.0,0.59136]
[1742997006823,0.5198359,87846.0,87845.0,0.87818596]
[1742997007024,0.5198359,87846.0,87845.0,0.88956896]
[1742997007237,0.9510359,87846.0,87845.0,0.59136]
[1742997007640,0.6510359,87846.0,87845.0,0.59136]
[1742997007879,0.9510359,87846.0,87845.0,0.59136]
[1742997008088,0.9500359,87846.0,87845.0,0.59136]
[1742997008488,0.9500359,87846.0,87845.0,0.59336]
[1742997008667,1.0250359,87846.0,87845.0,0.59336]
[1742997008889,0.3,87845.0,87840.0,0.0001696]
[1742997009096,0.0028464,87844.0,87840.0,0.0001696]
[1742997010298,0.0028464,87844.0,87823.0,0.59132]
[1742997010502,0.0038464,87844.0,87823.0,0.59132]
[1742997010716,0.3,87836.0,87823.0,0.59132]
[1742997010912,0.3,87834.0,87823.0,0.59132]
[1742997011112,0.00284672,87833.0,87823.0,0.59132]
[1742997011882,0.00284672,87833.0,87821.0,0.002]
[1742997012086,0.564095,87831.0,87821.0,0.002]
[1742997012332,3.8873,87831.0,87821.0,0.002]
[1742997012539,2.861897,87831.0,87821.0,0.002]
[1742997012743,3.089607,87831.0,87821.0,0.002]
[1742997013077,0.3,87803.0,87791.0,0.002]
[1742997013244,0.40516489,87792.0,87791.0,0.002]
[1742997013700,0.50516489,87792.0,87791.0,0.002]
[1742997014054,0.40516489,87792.0,87791.0,0.002]
[1742997014259,0.53832489,87792.0,87791.0,0.002]
[1742997014480,0.538418,87792.0,87791.0,0.002]
[1742997014692,0.41653481,87792.0,87791.0,0.002]
[1742997014891,0.55013481,87792.0,87791.0,0.002]
[1742997015333,0.56798148,87792.0,87791.0,0.002]
[1742997015484,0.56893248,87792.0,87791.0,0.002]
[1742997015683,0.56893248,87792.0,87791.0,0.003]
[1742997015902,0.56893248,87792.0,87791.0,0.002]
[1742997016133,0.56893248,87792.0,87791.0,0.003]
[1742997016309,0.43533248,87792.0,87791.0,0.003]
[1742997016508,0.56945248,87792.0,87791.0,0.003]
[1742997016713,0.62639773,87792.0,87791.0,0.002]
[1742997019089,0.56949248,87792.0,87791.0,0.002]
[1742997019774,1.11967348,87792.0,87791.0,0.002]
[1742997020196,1.14228027,87792.0,87791.0,0.002]
[1742997020411,1.13100346,87792.0,87791.0,0.002]
[1742997020808,0.44666246,87792.0,87791.0,0.002]
[1742997021112,0.50382871,87792.0,87791.0,0.002]
[1742997021307,0.63822871,87792.0,87791.0,0.002]
[1742997021511,0.58106246,87792.0,87791.0,0.002]
[1742997022077,0.58158246,87792.0,87791.0,0.002]